[Event "4th Tata Steel India Rapid Open 2022"]
[Site "Kolkota"]
[Date "2022.12.01"]
[Round "7.3"]
[White "Gukesh D"]
[Black "Nakamura, Hikaru"]
[Result "1/2-1/2"]
[ECO "C65"]
[WhiteElo "2725"]
[BlackElo "2768"]
[Annotator "TA"]
[PlyCount "67"]
[EventDate "2022.11.29"]
[EventType "tourn"]
[EventCountry "IND"]
[SourceTitle "playchess.com"]
[Source "ChessBase"]
[SourceQuality "1"]
[TimeControl "900+10"]

{[%evp 9,67,15,20,14,23,25,21,2,23,26,19,0,0,0,10,8,0,-9,4,0,0,0,0,0,0,0,0,0,36,27,42,4,0,-10,25,18,19,14,40,-21,29,28,27,22,34,11,14,0,0,0,0,0,20,6,47,0,0,-31,0,0]} 1. e4 {[%emt 0:00:04]} e5 {[%emt 0:00:06]} 2. Nf3 {[%emt 0:00:03]} Nc6 {[%emt 0:00:02]} 3. Bb5 {[%emt 0:00:16]} Nf6 {[%emt 0:00:01]} 4. d3 {[%emt 0:00:07]} Bc5 {[%emt 0:00:02]} 5. Bxc6 {[%emt 0:00:03]} dxc6 {[%emt 0:00:02]} 6. Nbd2 {[%emt 0:00:05][%cal Bb1d2,Bd2b3,Bb3a5,Ba5c4,Bc4e3,Be3f5][%mdl 32] C65: Ruy Lopez: Berlin Defence (3...Nf6), unusual lines and 4 0-0 Bc5.} Be6 {[%emt 0:00:16]} 7. O-O {[%emt 0:00:04]} Bd6 {[%emt 0:00:23]} 8. Nb3 $1 {[%emt 0:00:17][%mdl 4] is more profitable than 8.b3 at the moment.} O-O {[%emt 0:01:52]} 9. Na5 {[%emt 0:00:05]} Qc8 {[%emt 0:00:11] [#]} 10. Ng5 $146 {[%emt 0:03:25]} ({Predecessor:} 10. Bd2 Re8 11. Ng5 b6 12. Nxe6 Qxe6 13. Nb3 a5 14. a4 Nd7 15. Be3 f5 16. exf5 Qxf5 {0-1 (47) So,W (2778)-Radjabov,T (2763) chess24.com INT 2021}) 10... Bg4 {[%emt 0:02:12]} 11. Nf3 {[%emt 0:03:29]} Nd7 {[%emt 0:01:21][%cal Bf6d7,Bd7c5,Bc5e6][%mdl 32]} 12. h3 {[%emt 0:00:11]} Bh5 {[%emt 0:00:13]} 13. Nc4 {[%emt 0:00:37]} Re8 {[%emt 0:00:03]} 14. Ne3 {[%emt 0:00:23]} (14. g4 $5 Bg6 $8 15. Nh4 $11) 14... f6 {[%emt 0:00:23]} 15. Kh1 {[%emt 0:00:18]} Nc5 {[%emt 0:00:12]} 16. Nf5 {[%emt 0:00:22]} Ne6 {[%emt 0:00:07]} 17. g4 {[%emt 0:00:30]} Bg6 {[%emt 0:00:45]} 18. Rg1 {[%emt 0:00:11]} h6 {[%emt 0:00:46]} 19. Be3 {[%emt 0:00:06]} Qd7 {[%emt 0:00:36]} 20. Qf1 {[%emt 0:00:38]} c5 {[%emt 0:01:03]} 21. h4 {[%emt 0:00:39][%cal Bh3h4,Bh4h5][%mdl 32]} Kf7 {[%emt 0:00:01]} (21... Nd4 {simplifies} 22. Bxd4 cxd4 23. Qh3 Rf8) 22. c3 {[%emt 0:00:30]} Qc6 {[%emt 0:00:17][%cal Oc5c4]} 23. b3 {[%emt 0:01:34]} Rad8 {[%emt 0:00:08]} 24. Qe2 {[%emt 0:00:20]} (24. Rd1 $14) 24... Rh8 {[%emt 0:00:17]} (24... h5 $142) 25. h5 $11 {[%emt 0:05:03]} Bh7 {[%emt 0:00:17]} 26. Rgd1 {[%emt 0:00:00]} Rd7 {[%emt 0:00:10]} (26... Be7 {feels hotter.} 27. N3h4 Rd7 28. Rd2 Qa6) 27. Kg1 {[%emt 0:00:00]} Rhd8 {[%emt 0:00:01]} 28. a4 {[%emt 0:00:00]} Bf8 {[%emt 0:00:37]} 29. Rd2 {[%emt 0:00:00]} b6 {[%emt 0:00:27]} 30. Ne1 {[%emt 0:00:00]} Bg8 {[%emt 0:00:27]} 31. Ng2 {[%emt 0:00:00]} Bd6 {[%emt 0:00:28]} 32. Rf1 {[%emt 0:00:00]} (32. Ngh4 $14 {might be stronger.}) 32... Kf8 {[%emt 0:00:51]} 33. c4 {[%emt 0:00:00][%cal Oa4a5]} Bh7 {[%emt 0:00:20]} 34. Qd1 {[%emt 0:00:08] Weighted Error Value: White=0.12 (very precise) /Black=0.12 (very precise)} 1/2-1/2

[Event "4th Tata Steel India Rapid Open 2022"]
[Site "Kolkota"]
[Date "2022.12.01"]
[Round "7.4"]
[White "Maghsoodloo, Parham"]
[Black "Erigaisi Arjun"]
[Result "1/2-1/2"]
[ECO "D31"]
[WhiteElo "2720"]
[BlackElo "2718"]
[Annotator "TA"]
[PlyCount "77"]
[EventDate "2022.11.29"]
[EventType "tourn"]
[EventCountry "IND"]
[SourceTitle "playchess.com"]
[Source "ChessBase"]
[SourceQuality "1"]
[TimeControl "900+10"]

{[%evp 9,77,-2,18,11,14,3,9,-8,-8,0,-7,0,6,0,0,0,0,0,0,0,37,5,37,27,32,30,62,0,0,0,33,-41,-52,-69,-41,-92,-89,-91,-9,-11,0,-6,0,0,-8,-8,0,0,0,0,0,0,0,0,114,0,0,0,0,0,0,0,0,0,0,0,0,0,0,0]} 1. d4 {[%emt 0:00:03]} d5 {[%emt 0:00:13]} 2. c4 {[%emt 0:00:02]} e6 {[%emt 0:00:02]} 3. Nc3 {[%emt 0:00:02]} c6 {[%emt 0:00:02]} 4. e3 {[%emt 0:00:02]} Nf6 {[%emt 0:00:02]} 5. b3 {[%emt 0:00:01]} Nbd7 {[%emt 0:00:19]} 6. Bb2 {[%emt 0:00:07] D31: Queen's Gambit Declined: Semi-Slav without ...Nf6 (+ Marshall Gambit and Noteboom) and Exchange Variation lines without ...Nf6.} Bd6 {[%emt 0:00:20]} 7. Bd3 $1 {[%emt 0:01:08][%mdl 4] is currently scoring better than 7.Nf3.} O-O {[%emt 0:00:47]} 8. c5 {[%emt 0:00:10] Against e5} Bc7 {[%emt 0:00:49]} 9. f4 $1 {[%emt 0:00:02] Prevents e5.} b6 {[%emt 0:00:12] [#]} 10. cxb6 $146 {[%emt 0:01:07]} ({Predecessor:} 10. b4 a5 11. a3 Ba6 12. Nf3 Bxd3 13. Qxd3 axb4 14. axb4 bxc5 15. bxc5 Ba5 16. O-O Bxc3 17. Bxc3 {0-1 (37) Sergeev,V (2473)-Haba,P (2513) Hustopece 2010}) 10... Bxb6 {[%emt 0:01:19]} 11. Nf3 {[%emt 0:00:04]} c5 {[%emt 0:00:03]} 12. O-O {[%emt 0:00:06]} cxd4 {[%emt 0:00:27]} 13. exd4 {[%emt 0:00:01]} Bb7 {[%emt 0:00:05]} 14. Na4 {[%emt 0:00:20]} Ne4 {[%emt 0:00:21]} 15. b4 {[%emt 0:00:54]} Bc7 {[%emt 0:01:45]} 16. Ne5 {[%emt 0:00:22]} Nxe5 {[%emt 0:01:21]} 17. fxe5 {[%emt 0:00:02]} f6 {[%emt 0:00:03]} 18. Qg4 {[%emt 0:02:32]} (18. Qc2 $14) 18... Qe7 $11 {[%emt 0:03:08]} 19. Nc5 {[%emt 0:01:31][%cal Rd3e4]} Nxc5 {[%emt 0:00:35]} (19... f5 $5 {[%cal Rf5g4]} 20. Qe2 Bb6 $11) 20. exf6 {[%emt 0:02:08]} (20. dxc5 fxe5 21. Rxf8+ Rxf8 $15) (20. bxc5 $14 fxe5 21. dxe5) 20... Bxh2+ $15 {[%emt 0:00:39]} 21. Kh1 $1 {[%emt 0:00:02][%mdl 64]} Rxf6 {[%emt 0:00:08]} 22. Rxf6 {[%emt 0:00:01]} (22. dxc5 $2 Rh6 23. Bc1 Bf4+ 24. Kg1 Rh4 25. Qxf4 Rxf4 26. Bxf4 e5 $19) ({White should play} 22. bxc5 $15 Rh6 23. Bc1) 22... Nxd3 $17 {[%emt 0:01:58]} 23. Raf1 {[%emt 0:00:02] [#]} h5 {[%emt 0:00:46]} (23... Bf4 $1 $17 24. R6xf4 Nxf4 25. Rxf4 Ba6) 24. Qg6 $11 {[%emt 0:00:51] White threatens Rf7 and mate.} Bd6 {[%emt 0:00:15]} (24... Nxb2 {gets mated.} 25. Rf7 (25. Kxh2 $2 {perishes.} Ba6 $19) (25. Kxh2 $2 Ba6 $19)) 25. Kg1 {[%emt 0:01:13] Hoping for Rf7. Really sharp!} Nf4 {[%emt 0:00:18]} (25... Nxb2 $2 26. Rf7 $18 (26. Rxe6 Qh4 $11) (26. Rxe6 Qh4 $11)) 26. R6xf4 {[%emt 0:00:01]} (26. R1xf4 {simplifies} Bxf4 27. Rxf4 Qe8 28. Qxe8+ Rxe8 29. b5) 26... Bxf4 {[%emt 0:00:02]} 27. Rxf4 {[%emt 0:00:01]} Bc6 {[%emt 0:00:45]} (27... Qe8 {simplifies} 28. Qxe8+ Rxe8 29. b5 Rf8) 28. Qxh5 {[%emt 0:00:23]} Be8 {[%emt 0:00:03]} 29. Qh3 {[%emt 0:00:41]} Bg6 {[%emt 0:00:09]} 30. Rh4 {[%emt 0:00:02] [#] And now Rh8+ would win.} Kf7 {[%emt 0:00:51]} 31. b5 {[%emt 0:00:31]} Rc8 {[%emt 0:00:11]} (31... Qg5 $11 {remains equal.}) 32. Ba3 {[%emt 0:00:05]} ({Only move:} 32. Rf4+ $16 Kg8 33. Ba3) 32... Qf6 {[%emt 0:00:27] The position is equal.} 33. Bc5 {[%emt 0:00:01]} Bf5 {[%emt 0:00:22]} (33... Bd3 {looks sharper.} 34. Qg4 Be2 35. Qg3 g5) 34. Qg3 {[%emt 0:00:02]} g5 {[%emt 0:00:26] Against Rf4} 35. Rh5 {[%emt 0:00:13]} Kg6 {[%emt 0:00:13]} 36. Rh4 {[%emt 0:01:00]} Kf7 {[%emt 0:00:24]} 37. Rh5 {[%emt 0:01:03]} Kg6 $1 {[%emt 0:00:02]} 38. Rh4 {[%emt 0:00:01]} Kf7 {[%emt 0:00:01]} 39. Rh5 {[%emt 0:00:01] Weighted Error Value: White=0.12 (very precise) /Black=0.13 (very precise)} 1/2-1/2

[Event "4th Tata Steel India Rapid Open 2022"]
[Site "Kolkota"]
[Date "2022.12.01"]
[Round "7.5"]
[White "Mamedyarov, Shakhriyar"]
[Black "Nihal Sarin"]
[Result "0-1"]
[ECO "D27"]
[WhiteElo "2741"]
[BlackElo "2670"]
[Annotator "TA"]
[PlyCount "68"]
[EventDate "2022.11.29"]
[EventType "tourn"]
[EventCountry "IND"]
[SourceTitle "playchess.com"]
[Source "ChessBase"]
[SourceQuality "1"]
[TimeControl "900+10"]

{[%evp 15,68,26,18,17,14,0,8,-8,-15,-23,0,-10,18,-18,-18,-29,-17,-19,-25,-41,-48,-45,-34,-59,-47,-47,-14,-50,-16,-33,-35,-45,-24,-208,-266,-253,-206,-208,-208,-214,-210,-232,-168,-267,-264,-243,-210,-263,-189,-388,-395,-593,-578,-983,-971]} 1. d4 {[%emt 0:00:02]} d5 {[%emt 0:00:05]} 2. c4 {[%emt 0:00:07]} dxc4 {[%emt 0:00:02]} 3. Nf3 {[%emt 0:00:03]} Nf6 {[%emt 0:00:01]} 4. e3 {[%emt 0:00:01]} e6 {[%emt 0:00:01]} 5. Bxc4 {[%emt 0:00:01]} c5 {[%emt 0:00:02]} 6. O-O {[%emt 0:00:03]} a6 {[%emt 0:00:01]} 7. b3 {[%emt 0:00:16]} Nbd7 {[%emt 0:00:07]} 8. Bb2 {[%emt 0:00:20]} Be7 {[%emt 0:00:04] 8...Be7 scores better than 8...b5.} 9. Nbd2 {[%emt 0:00:35] D27: Queen's Gambit Accepted: Classical main line: 7 e4!? and 7 a4.} b6 $5 {[%emt 0:00:04][%cal Bb7b6,Bb6b5][%mdl 4] [#] Exploring less charted territory.} 10. e4 $146 {[%emt 0:00:48][%cal Be3e4,Be4e5][%mdl 32]} ({Predecessor:} 10. dxc5 Nxc5 11. Qc2 Bb7 12. Rfd1 Qc7 13. Be5 Qc6 14. Bf1 Rc8 15. Nd4 Qd5 16. Nc4 Ncd7 17. Bxf6 gxf6 {½-½ (88) Erigaisi,A (2627)-Aronian,L (2782) Kolkata 2021}) 10... Bb7 {[%emt 0:01:06]} 11. e5 {[%emt 0:00:15] The position is equal.} Nd5 {[%emt 0:00:46]} 12. Re1 {[%emt 0:00:17]} (12. Ne4 {keeps more tension.} b5 13. Nd6+ Bxd6 14. Bxd5 Bxd5 15. exd6 c4 16. bxc4 Bxc4 17. Re1) 12... O-O {[%emt 0:01:20]} 13. Ne4 {[%emt 0:00:05]} b5 {[%emt 0:00:22]} 14. Bd3 {[%emt 0:01:58]} Rc8 {[%emt 0:00:17]} 15. Rc1 {[%emt 0:00:36] Prevents c4.} (15. Bf1 {is interesting.} cxd4 16. Qxd4 Nb4 17. Nd6) 15... cxd4 {[%emt 0:05:23]} 16. Rxc8 {[%emt 0:00:41]} Qxc8 {[%emt 0:00:10]} 17. Bxd4 {[%emt 0:00:16]} Qc7 {[%emt 0:00:00]} 18. Bb1 {[%emt 0:01:15]} Rd8 {[%emt 0:01:11]} (18... Bb4 $5 {[%cal Rb4e1]} 19. Rf1 Rd8 $15) 19. g3 {[%emt 0:02:20]} h6 {[%emt 0:00:40]} 20. Qe2 {[%emt 0:00:30]} Nf8 {[%emt 0:00:26]} 21. Rd1 {[%emt 0:00:09]} Rd7 {[%emt 0:01:09]} 22. h4 {[%emt 0:01:42]} Qd8 {[%emt 0:05:33]} 23. Rd2 {[%emt 0:06:40]} Bb4 {[%emt 0:00:10]} 24. Rc2 {[%emt 0:00:00] Now White is beyond hope.} (24. Rd3 $1 $11 {and White is okay.}) 24... Ne7 $19 {[%emt 0:00:00] [#] aiming for ...Nf5.} 25. a3 {[%emt 0:00:00]} Bxa3 {[%emt 0:00:20]} 26. Rd2 {[%emt 0:00:30]} Bb4 {[%emt 0:00:00]} 27. Rd3 {[%emt 0:00:10]} Nf5 {[%emt 0:00:00][%cal Rf5d4]} 28. Bb2 {[%emt 0:00:00]} Rxd3 {[%emt 0:00:00]} 29. Bxd3 {[%emt 0:00:00]} (29. Qxd3 {keeps fighting.} Qd5 30. Qxd5 Bxd5 31. Bc2) 29... Qd5 {[%emt 0:00:00] [#] And now ...Nd7 would win.} 30. Bc2 {[%emt 0:00:00]} Nd7 {[%emt 0:00:00][%cal Bf8d7,Bd7c5,Bc5e4,Be4d2][%mdl 32] Threatens to win with ...Nc5.} 31. g4 {[%emt 0:00:00]} Nc5 {[%emt 0:00:16]} 32. gxf5 $2 {[%emt 0:00:21]} (32. Nxc5 Bxc5 33. gxf5 Qxf3 34. Qxf3 Bxf3 35. f6) 32... Nxe4 {[%emt 0:00:02]} 33. fxe6 {[%emt 0:00:02]} (33. Qd3 $142 Qxd3 34. Bxd3) 33... Nd2 {[%emt 0:00:42]} 34. exf7+ {[%emt 0:00:01]} Kf8 {[%emt 0:00:01] Weighted Error Value: White=0.55/Black=0.18 (very precise)} 0-1

[Event "4th Tata Steel India Rapid Open 2022"]
[Site "Kolkota"]
[Date "2022.12.01"]
[Round "8.1"]
[White "Nakamura, Hikaru"]
[Black "Erigaisi Arjun"]
[Result "0-1"]
[ECO "D35"]
[WhiteElo "2768"]
[BlackElo "2718"]
[Annotator "TA"]
[PlyCount "112"]
[EventDate "2022.11.29"]
[EventType "tourn"]
[EventCountry "IND"]
[SourceTitle "playchess.com"]
[Source "ChessBase"]
[SourceQuality "1"]
[TimeControl "900+10"]

{[%evp 11,112,-5,-4,-5,-9,-38,-30,-39,-25,-31,-15,-26,5,-8,0,0,0,-42,-32,-46,0,-11,-3,-34,-41,-60,-41,-55,-45,-66,-52,-56,-42,-54,-39,-93,-82,-70,-31,-69,-10,-52,-45,-46,-14,-69,-57,-54,-32,-102,-100,-129,-90,-179,-166,-176,-149,-171,-149,-154,-127,-163,-161,-215,-172,-208,-100,-100,-110,-105,-102,-97,-80,-170,-165,-160,-104,-102,-101,-82,-97,-99,-84,-201,-196,-360,-295,-353,-353,-348,-325,-329,-198,-192,0,-116,-120,-118,-120,-29989,-29990,-29991,-29992]} 1. Nf3 {[%emt 0:00:02]} d5 {[%emt 0:00:23]} 2. e3 {[%emt 0:00:02]} Nf6 {[%emt 0:00:04]} 3. c4 {[%emt 0:00:02]} e6 {[%emt 0:00:04]} 4. Nc3 {[%emt 0:00:11]} Bd6 {[%emt 0:00:19]} 5. d4 {[%emt 0:00:19]} b6 {[%emt 0:00:19]} 6. cxd5 {[%emt 0:00:16]} exd5 {[%emt 0:00:02]} 7. Bd3 {[%emt 0:00:01] 7.Bb5+ is the hot move. D35: Queen's Gambit Declined: Exchange Variation.} O-O {[%emt 0:00:11]} 8. Bd2 {[%emt 0:00:07] [#]} c5 $146 {[%emt 0:00:31]} ({Predecessor:} 8... Bb7 9. O-O Nbd7 10. Rc1 c5 11. Nb5 Be7 12. Bb1 a6 13. Nc3 Re8 14. Ne5 Nxe5 15. dxe5 {1-0 (35) Goulesque,C (1899)-Tuillier,V (1607) Europe Echecs INT 2020}) 9. dxc5 {[%emt 0:00:07] Black has an edge.} bxc5 {[%emt 0:00:02]} 10. O-O {[%emt 0:00:04]} Nc6 {[%emt 0:00:12]} 11. h3 {[%emt 0:00:06]} (11. e4 {seems wilder.} d4 12. Nd5 h6 13. b4) 11... h6 {[%emt 0:00:32]} 12. Rc1 {[%emt 0:00:11]} Be6 {[%emt 0:00:05]} 13. Ne2 {[%emt 0:00:14]} Ne4 {[%emt 0:00:43]} 14. a3 {[%emt 0:00:52][%cal Ob2b4]} Qb6 {[%emt 0:00:54]} 15. Nc3 {[%emt 0:00:34]} Nxd2 {[%emt 0:02:23]} (15... Qxb2 16. Bxe4 (16. Nxe4 dxe4 17. Bxe4 Qb5 $11) 16... dxe4 17. Nxe4 $14) (15... f5 $5 {[%cal Rb6b2]}) 16. Qxd2 {[%emt 0:00:10]} c4 {[%emt 0:00:30]} 17. Bb1 {[%emt 0:01:16]} (17. Bxc4 $5 dxc4 18. Qxd6 $11) 17... Rfd8 {[%emt 0:00:03]} (17... Rfb8 18. Nxd5 Qxb2 19. Be4 $14) 18. Rfd1 {[%emt 0:01:30]} Rab8 {[%emt 0:00:46]} 19. Na4 {[%emt 0:00:02]} Qb7 {[%emt 0:00:39]} 20. Bc2 $1 {[%emt 0:00:32]} Qe7 {[%emt 0:00:12]} 21. Rb1 {[%emt 0:00:26]} Qf6 {[%emt 0:00:32][%cal Oe6h3]} 22. Qe2 {[%emt 0:00:00]} g6 {[%emt 0:00:28]} 23. Rd2 {[%emt 0:01:54]} ({Better is} 23. Nc3 $15) 23... Kg7 {[%emt 0:00:32]} 24. Qd1 {[%emt 0:00:09]} Bc7 {[%emt 0:01:08] Black has more active pieces. The white rooks are badly placed.} 25. Nc5 {[%emt 0:00:39]} Bc8 {[%emt 0:00:46]} (25... Rxb2 26. Rxb2 Qxb2 27. Ba4 $14) ({Black should play} 25... Ba5 $15 26. Nd4 Nxd4 27. Rxd4 Bb6 28. Nxe6+ Qxe6) 26. b4 {[%emt 0:02:52]} (26. Rxd5 {keeps more tension.} Rxb2 27. Rxd8 Rxb1 28. Qxb1 Qxd8 29. Ne4) 26... Ne5 {[%emt 0:00:02][%cal Bc6e5,Be5d7,Bd7b6][%mdl 32]} 27. Ne1 {[%emt 0:01:05]} Qd6 {[%emt 0:01:20]} 28. Na4 {[%emt 0:01:21] Prevents c3.} (28. Ne4 $1 $11 Qc6 29. Ba4) 28... a5 {[%emt 0:00:44][%cal Ra5b4]} 29. b5 {[%emt 0:00:57]} Be6 $36 {[%emt 0:00:40][%mdl 2048] Black has the initiative.} (29... Qxa3 30. b6 (30. Rxd5 Rxd5 31. Qxd5 Qd6 $11) 30... Bd6 31. Ra1 $11) 30. f4 {[%emt 0:00:29]} (30. Nc3 $15) 30... Nd7 $1 $17 {[%emt 0:00:24]} 31. Nf3 {[%emt 0:00:02]} Qxa3 {[%emt 0:00:08]} 32. Qe1 {[%emt 0:00:19]} (32. Re2 $17) 32... Nb6 {[%emt 0:00:19]} 33. Ra1 {[%emt 0:00:01]} Qe7 {[%emt 0:00:18]} 34. Nc3 {[%emt 0:00:14]} Ra8 {[%emt 0:00:10]} 35. f5 {[%emt 0:00:20]} gxf5 {[%emt 0:00:24][%cal Bg6f5,Bf5f4][%mdl 32]} 36. Ne2 {[%emt 0:00:08]} Bd7 {[%emt 0:00:45]} 37. Ned4 {[%emt 0:00:45]} (37. Ng3 $142) 37... f4 {[%emt 0:00:56]} 38. e4 {[%emt 0:00:20]} Re8 {[%emt 0:00:34]} (38... dxe4 $1 $19 {and Black stays clearly on top.} 39. Bxe4 Ra7) 39. Re2 {[%emt 0:00:00] Inhibits f5.} dxe4 {[%emt 0:00:20]} (39... Qb4 {with more complications.} 40. Qh4 dxe4 41. Bxe4 Rac8) 40. Bxe4 {[%emt 0:01:16]} Rad8 {[%emt 0:00:04][%cal Ba8d8,Bd8d6,Bd6d1][%mdl 32]} 41. Rxa5 {[%emt 0:00:26]} Qf6 {[%emt 0:00:10]} (41... Qc5 $6 42. Kh1 $15) 42. Ra6 {[%emt 0:00:15]} (42. Kh1 $17 {is a better defense.}) 42... Bc8 $1 $19 {[%emt 0:00:17][%csl LRa6,LRd4]} 43. Qa1 {[%emt 0:00:27]} (43. Ra7 $2 Bb8 44. Ra1 Rxd4 45. Nxd4 Qxd4+ $19) 43... Kg8 {[%emt 0:01:12] Really sharp!} ({Not} 43... Bxa6 44. Nf5+ Kg6 45. N3h4+ Kg5 46. Nf3+ Kg6 47. N3h4+ Kg5 48. Nf3+ Kg6 $11) (43... Kf8 $142 $1 44. Bc6 Rxe2 45. Nxe2 Qxa1+ 46. Rxa1 Kg7) 44. Nc6 $17 {[%emt 0:00:22]} Qxa1+ {[%emt 0:00:24]} 45. Rxa1 {[%emt 0:00:01]} Rd6 {[%emt 0:00:02] Hoping for ...Rde6.} 46. Ra7 {[%emt 0:00:25]} Rd1+ {[%emt 0:00:02]} 47. Kh2 {[%emt 0:00:15]} (47. Kf2 $17 Bd6 48. Bh7+ Kf8 49. Rxe8+ Kxe8 50. Ke2) 47... Bd6 $19 {[%emt 0:00:03]} 48. Nce5 $2 {[%emt 0:00:37]} (48. Bh7+ Kf8 49. Rxe8+ Kxe8 50. Bc2) 48... Bxe5 {[%emt 0:00:31] This pair of bishops is nice.} 49. Bc6 {[%emt 0:00:04]} Re6 {[%emt 0:00:07]} (49... Nd7 50. b6 f6 51. b7 Bxb7 52. Rxb7 $17) 50. Nxe5 {[%emt 0:00:10]} c3 $1 {[%emt 0:00:10][%cal Oe6e5]} ({And not} 50... f6 51. Ng4 $11) 51. Bf3 {[%emt 0:00:11] And now Bh5 would win.} Rd2 {[%emt 0:00:09] ...Rxe2 is the strong threat.} 52. Re4 {[%emt 0:00:17]} Nd5 $2 {[%emt 0:00:34]} (52... c2 $1 $19 {[%cal Rc2c1]} 53. Rc7 Bb7 $1 {[%mdl 512]} 54. Rxf4 Rxe5 55. Bxb7 Rd7 56. Rxc2 Rxb7) 53. Nxf7 {[%emt 0:00:09] [#]} (53. Ra8 $11 {remains equal.} Nb6 54. Ra3) 53... Rxe4 $1 $17 {[%emt 0:00:15]} 54. Bxe4 {[%emt 0:00:06] [#]} c2 $1 {[%emt 0:00:06]} 55. Nd6 $2 {[%emt 0:00:27][%mdl 8192]} (55. Nxh6+ $17 Kf8 56. Rf7+ Ke8 57. Bg6) 55... c1=Q {[%emt 0:00:11]} (55... c1=B $2 56. Nxc8 Ne3 57. Kg1 $18 (57. Ne7+ Kf7 $18)) 56. Bh7+ {[%emt 0:00:10]} Kh8 {[%emt 0:00:01] Weighted Error Value: White=0.36/Black=0.23 (precise)} 0-1